Cogmind - Beta 11.1 @@@ ROGUE MODE // 2022.09.20 @ 10:56:26 Player: Candesce Result: Destroyed by D-53 Grenadier with Mini Grenade Launcher Performance ------------- Evolutions (0) 0 Regions Visited (2) 400 Robots Destroyed (20) 100 Value Destroyed (324) 324 Prototype IDs (4) 80 Alien Tech Used (0) 0 Bonus (0) 0 TOTAL SCORE: 904 Bonus ------- None Cogmind --------- Core Integrity 0/250 Matter 240/300 Energy 100/100 System Corruption 0% Temperature Cool (0) Movement Core (400) Ox7 Location -10/Mines Parts ------- > --- POWER (1) -------- (None) > --- PROPULSION (2) --- (None) > --- UTILITY (2) ------ Large Storage Unit Seismic Detector > --- WEAPON (2) ------- Assault Rifle > --- INVENTORY (15) --- Light Nuclear Core Light Treads Compact Wheel Improved Heat Sink Compact Matter Pod (150) Structural Scanner Light Armor Plating Small Laser Particle Gun Assault Rifle Assault Rifle Assault Rifle Grenade Launcher Mining Laser Peak State ------------ > --- POWER ------------ Ion Engine > --- PROPULSION ------- Light Treads Light Treads > --- UTILITY ---------- Large Storage Unit Seismic Detector > --- WEAPON ----------- Assault Rifle Assault Rifle > --- INVENTORY -------- Light Nuclear Core Light Treads Light Treads Compact Wheel Improved Heat Sink Compact Matter Pod Small Laser Particle Gun Assault Rifle Assault Rifle Assault Rifle Assault Rifle Grenade Launcher Mining Laser [Rating: 9] Favorites ----------- Power Ion Engine Engine Ion Engine Propulsion Light Treads Treads Light Treads Wheel Compact Wheel Utility Seismic Detector Device Seismic Detector Storage Large Storage Unit Weapon Assault Rifle Ballistic Gun Assault Rifle Launcher Grenade Launcher Special Weapon Mining Laser Build | -11 -10 -10 ------- Run | Scr Mat Min Slots Evolved . | . . . Power . | . . . Propulsion . | . . . Utility . | . . . Weapon . | . . . Parts Attached 20 | 8 9 3 Power 2 | 1 1 . Engine 2 | 1 1 . Core . | . . . Reactor . | . . . Propulsion 5 | 3 2 . Treads 4 | 2 2 . Leg . | . . . Wheel 1 | 1 . . Hover . | . . . Flight . | . . . Utility 3 | 2 1 . Device 1 | 1 . . Storage 2 | 1 1 . Processor . | . . . Hackware . | . . . Protection . | . . . Artifact . | . . . Weapon 10 | 2 5 3 Energy Gun . | . . . Energy Cannon . | . . . Ballistic Gun 7 | 2 3 2 Ballistic Cannon . | . . . Launcher 2 | . 1 1 Special Weapon 1 | . 1 . Impact Weapon . | . . . Slashing Weapon . | . . . Piercing Weapon . | . . . Special Melee Weapon . | . . . Unidentified Prototypes . | . . . Parts Lost 5 | . . 5 Power 1 | . . 1 Propulsion 2 | . . 2 Utility . | . . . Weapon 2 | . . 2 Highest Loss Streak 5 | . . 5 To Critical Strikes . | . . . Average Slot Usage (%) 99 | . 100 99 Engine 13 | . 14 13 Treads 28 | . 28 28 Device 14 | . 14 14 Storage 14 | . 14 14 Ballistic Gun 27 | . 27 27 Naked Turns . | . . . Heaviest Build 31 | 13 31 30 Greatest Support 40 | 40 40 40 Greatest Overweight (x) . | . . . Average Overweight (x) . | . . . Largest Inventory Capacity 15 | 8 15 15 Average Capacity 12 | 7 11 15 Most Carried 15 | 3 13 15 Average Carried 8 | 2 6 14 Final Capacity 15 | 8 15 15 Final Carried 14 | 3 13 14 Class Distribution -------------------- 100% | Mutant Dominant Class ---------------- Mutant | -10/Materials Mutant | -10/Mines Resources | -11 -10 -10 ----------- Run | Scr Mat Min Matter Collected 648 | 368 148 132 Remotely . | . . . Salvage Created 520 | 175 284 61 Parts 42 | 14 22 6 Haulers Intercepted . | . . . Recyclers Shooed . | . . . Parts Field Recycled . | . . . Retrieved Matter . | . . . Parts Self-Destructed . | . . . Prevented . | . . . Kills | -11 -10 -10 ------- Run | Scr Mat Min Combat Hostiles Destroyed 16 | . 11 5 Guns 14 | . 11 3 AOE 2 | . . 2 Classes Destroyed 5 | 2 2 1 Tunneler 5 | 5 . . Recycler 1 | 1 . . Swarmer 9 | . 6 3 Grunt 5 | . 5 . Assembled 2 | . . 2 Best Kill Streak 5 | 3 5 3 Combat Bots Only 5 | . 5 3 Max Kills in Single Turn 2 | 1 1 2 Gunslinging . | . . . Exploded 2 | . . 2 Melee . | . . . Uniques/NPCs Destroyed . | . . . Combat | -11 -10 -10 -------- Run | Scr Mat Min Damage Taken 1169 | . 379 790 Core 265 | . 61 204 Absorbed by Shields . | . . . Core Remaining (%) 100 | 100 . . Volleys Fired 58 | 15 27 16 Largest 2 | 2 2 2 Hottest 100 | 40 100 40 Shots Fired 110 | 30 51 29 Gun 105 | 30 48 27 Cannon . | . . . Launcher 2 | . . 2 Special 3 | . 3 . Kinetic 105 | 30 48 27 Thermal 3 | . 3 . Explosive 2 | . . 2 Electromagnetic . | . . . Robot Hit Streak 8 | 8 4 3 Robot Miss Streak 3 | 2 3 3 Penetration Max . | . . . Secondary Targets 3 | . 2 1 Max Gunslinging Chain 1 | . 1 1 Shots Hit Robots 61 | 20 27 14 Core Hits 31 | 6 17 8 Critical Kills . | . . . Critical Parts Destroyed . | . . . Critical Strikes . | . . . Melee Attacks . | . . . Impact . | . . . Slashing . | . . . Piercing . | . . . Sneak Attacks . | . . . Combat Hostiles . | . . . Follow-up Attacks . | . . . Damage Inflicted 894 | 255 327 312 Guns 740 | 251 305 184 Cannons . | . . . Explosions 128 | . . 128 Melee . | . . . Ramming 26 | 4 22 . Kinetic 740 | 251 305 184 Thermal . | . . . Explosive 128 | . . 128 Electromagnetic . | . . . Impact . | . . . Slashing . | . . . Piercing . | . . . Highest Corruption . | . . . Average Corruption . | . . . Corruption Purged . | . . . Corruption Blocked . | . . . Overload Shots . | . . . Overflow Damage . | . . . Projectiles . | . . . Explosions . | . . . Melee . | . . . Knockbacks . | . . . Impact . | . . . Kinetic . | . . . Secondary . | . . . Self-Inflicted Damage 24 | . . 24 Shots 1 | . . 1 Rammed 7 | 2 5 . Targets Rammed 7 | 2 5 . Kicked . | . . . Crushed . | . . . Highest Temperature 60 | . 60 . Average Temperature 24 | . 24 . Received Heat Transfer 150 | . 150 . Siege Activations . | . . . Robots Corrupted . | . . . Combat Hostiles . | . . . Parts Fried . | . . . Impact Corruptions . | . . . Robots Melted . | . . . Combat Hostiles . | . . . Parts Melted . | . . . Heat Transferred . | . . . Parts Sabotaged . | . . . Parts Stolen . | . . . Parts Stripped . | . . . Power Chain Reactions . | . . . Missiles Intercepted . | . . . Alert | -11 -10 -10 ------- Run | Scr Mat Min Peak Influence 331 | 30 331 113 Initial 43 | . 19 43 Average 89 | 17 175 34 Maximum Alert Level 1 | . 1 . Low Security (%) 76 | 100 43 100 Level 1 23 | . 56 . Level 2 . | . . . Level 3 . | . . . Level 4 . | . . . Level 5 . | . . . High Security . | . . . Max Security . | . . . Squads Dispatched 4 | . 4 . Investigation 4 | . 4 . Extermination . | . . . Reinforcement . | . . . Assault . | . . . Garrison . | . . . Intercept . | . . . Searches Triggered . | . . . Construction Impeded . | . . . Haulers Reinforced . | . . . Active Scanning Responses . | . . . Cargo Convoy Interrupts . | . . . Stealth | -11 -10 -10 --------- Run | Scr Mat Min Distress Signals . | . . . Communications Jammed . | . . . Distress Signals . | . . . Times Spotted 26 | . 15 11 Peak Tracking Total 6 | . 5 6 Tactical Retreats 1 | . 1 . Traps | -11 -10 -10 ------- Run | Scr Mat Min Traps Triggered 1 | . 1 . Indirectly . | . . . Trap Hack Attempts . | . . . Triggered . | . . . Disarmed . | . . . Reprogrammed . | . . . Reused . | . . . Traps Extracted . | . . . Installed . | . . . Triggered . | . . . Machines | -11 -10 -10 ---------- Run | Scr Mat Min Machines Disabled 1 | . 1 . Max in Single Turn 1 | . 1 . Machines Sabotaged . | . . . Garrisons Compromised . | . . . Overloaded Fab Kills . | . . . Hacking | -11 -10 -10 --------- Run | Scr Mat Min Machines Accessed 8 | . 8 . Terminals 6 | . 6 . Fabricators . | . . . Repair Stations . | . . . Recycling Units 2 | . 2 . Scanalyzers . | . . . Garrison Access . | . . . Total Hacks 31 | . 31 . Successful 19 | . 19 . Failed 11 | . 11 . Catastrophic 1 | . 1 . Database Lockouts 1 | . 1 . Manual 16 | . 16 . Terminals 29 | . 29 . Fabricators . | . . . Repair Stations . | . . . Recycling Units 2 | . 2 . Scanalyzers . | . . . Garrison Access . | . . . Terminal Hacks 15 | . 15 . Part Schematic 1 | . 1 . Robot Schematic 1 | . 1 . Robot Analysis 2 | . 2 . Prototype ID Bank 2 | . 2 . Level Access Points 1 | . 1 . Branch Access Points 1 | . 1 . Terminal Index 1 | . 1 . Unreport Threat 1 | . 1 . Locate Traps 1 | . 1 . Patrol Status 1 | . 1 . Transport Status 1 | . 1 . Hauler Manifests 1 | . 1 . Zone Layout 1 | . 1 . Fabricator Hacks . | . . . Repair Station Hacks . | . . . Recycling Unit Hacks . | . . . Scanalyzer . | . . . Garrison Access Hacks . | . . . Unauthorized Hacks 4 | . 4 . Terminals 2 | . 2 . Botnet 2 | . 2 . Fabricators . | . . . Repair Stations . | . . . Recycling Units 2 | . 2 . Tunnel 2 | . 2 . Scanalyzers . | . . . Garrison Access . | . . . Data Cores Recovered . | . . . Used . | . . . Hacking Detections 6 | . 6 . Full Trace Events 1 | . 1 . Feedback Events . | . . . Feedback Blocked . | . . . Robot Schematics Acquired 1 | . 1 . Robots Built . | . . . Authchips . | . . . Time . | . . . Total Robot Build Rating . | . . . Part Schematics Acquired 1 | . 1 . Parts Built . | . . . Authchips . | . . . Time . | . . . Total Part Build Rating . | . . . Parts Repaired . | . . . Time . | . . . Parts Recycled . | . . . Recycled Matter . | . . . Retrieved Matter . | . . . Retrieved Components . | . . . Parts Scanalyzed . | . . . Part Schematics Acquired . | . . . Parts Damaged . | . . . Bothacking | -11 -10 -10 ------------ Run | Scr Mat Min Used RIF Installer . | . . . Robots Hacked . | . . . Non-combat . | . . . Combat . | . . . Robot Hacks Applied . | . . . Relay Couplers Released . | . . . Fabnet Peak Effective % . | . . . Robots Rewired . | . . . Allies Hacked . | . . . Hacks Repelled . | . . . Allies | -11 -10 -10 -------- Run | Scr Mat Min Total Allies . | . . . Largest Group . | . . . Highest-Rated Group . | . . . Highest-Rated Ally . | . . . Total Orders . | . . . Ally Attacks . | . . . Total Damage . | . . . Kills . | . . . Allies Corrupted . | . . . Allies Melted . | . . . Intel | -11 -10 -10 ------- Run | Scr Mat Min Robot Analysis Total 2 | . 2 . Derelict Logs Recovered 2 | . . 2 Drone Launches . | . . . Drone Recoveries . | . . . Exploration | -11 -10 -10 ------------- Run | Scr Mat Min Turns Passed 1432 | 305 595 532 Spaces Moved 713 | 153 260 300 Core 2 | 2 . . Treads 709 | 149 260 300 Legs . | . . . Wheels 2 | 2 . . Hover . | . . . Flight . | . . . Fastest Speed 50 | 50 160 160 Average Speed 159 | 157 160 160 Slowest Speed 160 | 160 160 160 Overloaded Moves . | . . . Propulsion Burnouts . | . . . Robots Hopped . | . . . Cave-ins Triggered . | . . . Exploration Rate (%) 43 | 8 64 59 Regions Visited 2 Branch Regions 1 Pre-discovered Areas 2 | . 2 . Known Exits Taken 1 | . 1 . Unknown Exits Taken 1 | 1 . . Scrap Searched 1 | . . 1 Spaces Dug 18 | . 3 15 Terrain Destroyed 18 | . 3 15 Melee . | . . . Projectile 3 | . 3 . AOE 15 | . . 15 Terrain Rammed . | . . . Walls Destroyed . | . . . Machines Disabled . | . . . Actions | -11 -10 -10 --------- Run | Scr Mat Min Total 882 | 183 376 323 Wait 69 | 1 68 . Move 712 | 153 259 300 Hop . | . . . Pick Up 13 | 4 6 3 Fast Attach 6 | 6 . . Attach 3 | 2 . 1 Detach 1 | 1 . . Swap 11 | . 9 2 Drop 3 | . 2 1 Fire 58 | 15 27 16 Melee . | . . . Ram . | . . . Kick . | . . . Crush 6 | 1 5 . Escape Stasis . | . . . Rewire . | . . . Trap . | . . . Miscellaneous . | . . . Route ------- -11/Scrapyard -10/Materials (discovered 5 exits: Mat x3 / *Min x2) -10/Mines (discovered 2 exits: *Mat / [*Exi]) History --------- Turn | Location | Event 12 | -11/Scrapyard | Discovered new exit (range 15) 306 | -11/Scrapyard | Entered Materials 307 | -10/Materials | Build established: Mutant 551 | -10/Materials | Central database locked down 651 | -10/Materials | Identified exit to Materials 861 | -10/Materials | Identified exit to Mines 901 | -10/Materials | Entered Mines 1069 | -10/Mines | Deemed a non-threat by the Exiles lab entrance 1069 | -10/Mines | Discovered new exit (range 5) 1150 | -10/Mines | Learned Materials terminal intel 1381 | -10/Mines | Assembled infested the area 1404 | -10/Mines | Core integrity fell below 50% 1430 | -10/Mines | Core integrity fell below 20% 1433 | -10/Mines | Destroyed by D-53 Grenadier with Mini Grenade Launcher Last Messages --------------- 01262_ Dropped Lgt. Treads. 01267_ Acquired Lgt. Armor Plating. 01281_ S-10 Pest destroyed. 01281_ Switching to secondary target: S-10 Pest. 01293_ S-10 Pest destroyed. 01299_ Acquired 16 matter. 01300_ Acquired 12 matter. 01352_ Acquired 8 matter. 01381_ ALERT: Infestation in the mines, dispatching Demolisher response squad. 01402_ as-09019 destroyed. 01416_ Assault Rifle destroyed. 01419_ as-80639 destroyed. 01419_ as-78437 destroyed. 01425_ as-30488 destroyed. 01425_ Ion Engine destroyed. 01429_ Assault Rifle destroyed. 01430_ The unstable cave ceiling collapses. 01431_ Lgt. Treads destroyed. 01433_ The unstable cave ceiling collapses. 01433_ Lgt. Treads destroyed. Map ----- +----------------------------------------------------+ | ##### #???????# ##????## ##??????????????????? | | ????# ######### #?????# ####### ###????????? | | ????# ####### ???????? | | ????########### ## ????????? | | ??????????????###### ### #######???????????? | | ??????????????????## #?# ##?????????????????? | | ?????????????????## #### #??????????????????? | | ????????????????## #?## ##??????????????????? | | ???????????????## #### #???????????????????? | | ######????????## #???????????????????? | | ######??## #???????????????????? | | #??# ######???????????????????? | | ### #??# ##????????????????????????? | | #### #?# #??## ######?????????????????????????? | | #??# #?# #???### #??????????????????????????????? | | #??# #?# #?????# #??????????????????????????????? | | #??#% #?# ####### #??????????????????????????????? | | #??# #?# #???##?????????????????????????? | | #??# ########### ##### ?????????????????????????? | | #?## ##??????# ## ?????????????????????????? | | #?# ##?????### #?##?????????????????????? | | ??# #####???# # # # ###???????????????????? | | ??# ##?## ##??????????????????? | | ??# ### [ # #??????????????????? | | ??# ### # # #??????????????????? | | ??# ##?#### @ #??????????????????? | | ??## ##????# % #??????????????????? | | ??## ####??# #??????????????????? | | ?## ##?# # ##??????????????????? | | ## #?## ### d ####### #????????? | | #??##??#### d % #????????? | | =#???#### #### #######?????????????? | | ### #???# ### ###?????????????????? | | ##?# #??# ####### ####??????? | | !###??# #??# ???? | | #######?# #??## ???? | | # =[## #???## ######### ??????? | | # """%< =[ #????## #???????????????? | | # """ =* #?????## ## ##???????????????? | | # """ #####??????# #######????????????????? | | # ???????????# ##??????????????????????? | | #######???????????# #???????????????????????? | | ??????????????????## ##???????????????????????? | | ???????????????????#####?????????????????????????? | | ?????????????????????????????????????????????????? | | ?????????????????????????????????????????????????? | | | | | | | | | +----------------------------------------------------+ Best States ------------- Heat Dissipation 25 Energy Generation 10 Energy Capacity 250 Matter Stores 300 Matter Capacity 300 Sight Range 16 Terrain Scan Density 10 Evasion (%) 40 Recoil Reduction 2 Item Schematics ----------------- Hcp. Storage Unit | -10/Materials | Hacked Robot Schematics ------------------ S-10 Pest | -10/Materials | Hacked Fabricated ------------ Nothing Alien Tech Used ----------------- None Achievements -------------- None Challenges ------------ None Game ------ Seed CorePhaseBoosters Manual? 0 Play Time 00:13:58 Cumulative 77.7 hours Start 2022.09.19 @ 21:15:45 End 2022.09.20 @ 10:56:26 Sessions 3 Manual Loads 0 Difficulty Rogue Special Mode None Game No. 141 Rogue 141 Adventurer 0 Explorer 0 Win Type - Total 1 Types 0/0/0/1/0/0/0/0/0 Lore% 56 Gallery% 64 Achievement% 49 Wizard Run 0 Options --------- ASCII 0 Keyboard 0 Movement Numpad Keybinds 0 Fullscreen 1 Font 14/SmallcapsGlow Map View 84x54 Tactical HUD 1 Map Filters NONE Filters NONE Steam 1 RUN: e8205d33-9b64-43ed-abfd-4731e18ddc3e